bitfinex/quotes_SOLUSD_20240729
["timestamp","ask_amount","ask_price","bid_price","bid_amount"]
[1722238138779,30.2847,192.09,192.03,4.1659]
[1722238141282,26.12,192.09,192.04,4.1657]
[1722238141488,26.12,192.09,192.04,10.4142]
[1722238141697,4.1645,192.1,192.04,14.5799]
[1722238142809,4.1647,192.09,192.04,14.5799]
[1722238143103,4.1642,192.11,192.06,4.1653]
[1722238143413,4.1642,192.11,192.1,1.0]
[1722238143595,27.67123023,192.12,192.1,1.0]
[1722238143799,31.83523023,192.12,192.1,1.0]
[1722238144103,4.1642,192.11,192.1,1.0]
[1722238144298,26.12,192.12,192.1,1.0]
[1722238144685,4.1642,192.11,192.1,1.0]
[1722238145401,5.46570245,192.11,192.1,1.0]
[1722238146489,4.1642,192.11,192.1,1.0]
[1722238150715,4.1642,192.11,191.97,27.61071114]
[1722238150716,53.51158496,192.12,191.99,5.217]
[1722238151013,26.12,192.07,191.99,5.217]
[1722238151221,45.0,192.11,191.99,5.217]
[1722238151222,13.05,192.02,191.99,5.217]
[1722238151395,13.05,192.01,191.99,9.3838]
[1722238151710,13.05,192.01,192.0,4.1666]
[1722238151913,13.05,192.02,191.99,9.3838]
[1722238152206,1.30198087,192.08,192.03,4.1659]
[1722238152418,13.05,192.04,192.03,4.1659]
[1722238153300,5.46660108,192.09,192.03,4.1659]
[1722238153606,13.05,192.04,192.03,4.1659]
[1722238153812,13.05,192.04,192.02,4.1662]
[1722238154114,4.1649,192.08,192.03,4.166]
[1722238154299,5.46650108,192.09,192.03,4.166]
[1722238154495,4.1649,192.08,192.02,4.1662]
[1722238154823,13.05,192.03,192.02,4.1662]
[1722238155020,13.05,192.04,192.03,4.1659]
[1722238155190,13.05,192.04,192.02,4.1662]
[1722238155396,13.05,192.03,192.02,4.1662]
[1722238155596,13.05,192.03,192.01,10.4158]
[1722238155811,13.05,192.02,192.01,14.5821]
[1722238157331,13.05,192.02,192.01,14.5822]
[1722238157894,13.05,192.03,192.01,14.5822]
[1722238158333,52.2,192.1,192.04,10.4144]
[1722238158496,13.05,192.06,192.04,14.5801]
[1722238159506,13.05,192.05,192.04,14.5801]
[1722238160405,13.05,192.05,192.04,13.20207467]
[1722238161629,13.05,192.06,192.05,4.1655]
[1722238162411,13.05,192.06,192.04,13.20207467]
[1722238163353,52.2,192.1,192.04,9.03637467]
[1722238163847,4.1647,192.09,192.04,13.20207467]
[1722238164153,52.2,192.1,192.04,13.20207467]
[1722238164546,52.2,192.1,192.0,10.4164]
[1722238164729,4.1649,192.09,192.03,4.1658]
[1722238165458,56.3645,192.1,192.04,4.1657]
[1722238165624,52.2,192.1,192.05,4.1655]
[1722238165821,1.5401707,192.14,192.06,10.4133]
[1722238166021,13.05,192.07,192.06,14.5786]
[1722238166328,4.1645,192.1,192.03,10.415]
[1722238166635,13.05,192.06,192.03,10.415]
[1722238166840,13.05,192.05,192.04,4.1657]
[1722238167644,13.05,192.07,192.05,4.1655]
[1722238167846,13.05,192.07,192.04,4.1657]
[1722238168034,4.1642,192.11,192.05,4.1654]
[1722238168346,13.05,192.07,192.05,4.1654]
[1722238168556,13.05,192.06,192.05,4.1654]
[1722238168763,13.05,192.06,192.04,4.1657]
[1722238170228,13.05,192.06,192.05,4.1655]
[1722238170442,13.05,192.06,192.04,4.1657]
[1722238170639,13.05,192.07,192.04,4.1657]
[1722238171455,13.05,192.07,192.05,4.1655]
[1722238171957,13.05,192.13,192.12,10.4099]
[1722238172160,13.05,192.13,192.05,0.27044385]
[1722238172461,13.05,192.12,192.08,14.5767]
[1722238172766,4.9474092,192.16,192.08,10.4119]
[1722238172954,4.9474092,192.16,192.09,4.1646]
[1722238172955,13.05,192.11,192.09,4.1646]
[1722238173162,13.05,192.1,192.08,10.4119]
[1722238173364,4.1638,192.13,192.08,10.4119]
[1722238173530,4.1636,192.15,192.09,4.1646]
[1722238173735,13.05,192.11,192.09,4.1645]
[1722238177655,13.05,192.13,192.09,4.1645]
[1722238177841,13.05,192.14,192.1,4.1644]
[1722238178762,13.05,192.12,192.08,10.4121]
[1722238178946,0.7841092,192.16,192.08,10.4121]
[1722238179145,13.05,192.12,192.08,10.4121]
[1722238179353,13.05,192.12,192.09,4.1646]
[1722238180481,0.7841092,192.16,192.11,13.05]
[1722238180664,0.7841092,192.16,192.15,13.05]
[1722238180971,0.7841092,192.16,192.15,17.5534]
[1722238183360,0.7841092,192.16,192.15,4.1634]
[1722238187140,0.7841092,192.16,192.15,17.2134]
[1722238187851,0.7841092,192.16,192.15,4.1634]
[1722238188665,0.7841092,192.16,192.15,4.3334]
[1722238188860,0.7841092,192.16,192.12,33.8699]
[1722238188861,0.7841092,192.16,192.12,4.1638]
[1722238189077,0.7841092,192.16,192.13,10.4095]
[1722238189269,0.7841092,192.16,192.15,4.1634]
[1722238203682,0.7841092,192.16,192.15,17.2134]
[1722238203888,0.7841092,192.16,192.15,17.5534]
[1722238204398,0.7841092,192.16,192.15,17.2134]
[1722238204761,0.7841092,192.16,192.15,17.5534]
[1722238205281,0.7841092,192.16,192.15,17.822258]
[1722238205597,13.05,192.25,192.24,4.1614]
[1722238205895,4.48,192.31,192.25,4.1611]
[1722238206061,13.05,192.27,192.23,14.5652]
[1722238206259,13.05,192.26,192.23,14.5652]
[1722238206885,13.05,192.26,192.21,4.162]
[1722238207091,13.05,192.26,192.23,4.1616]
[1722238207385,13.05,192.25,192.21,10.4047]
[1722238208296,13.05,192.25,192.23,4.1616]
[1722238208764,5.4607762,192.29,192.23,4.1616]
[1722238208966,4.4801,192.31,192.25,4.1612]
[1722238209167,13.05,192.26,192.25,4.1612]
[1722238209368,0.32,192.31,192.28,4.1605]
[1722238209598,13.05,192.29,192.27,4.1607]
[1722238211968,13.05,192.3,192.27,4.1607]
[1722238212178,13.05,192.3,192.26,10.4021]
[1722238212386,13.05,192.3,192.27,4.1607]
[1722238212703,13.37,192.31,192.28,4.1605]
[1722238214010,13.05,192.29,192.27,4.1607]
[1722238214205,13.05,192.29,192.19,15.4104]
[1722238214206,13.05,192.28,192.23,10.4041]
[1722238214416,13.05,192.25,192.2,4.1621]
[1722238214720,13.05,192.25,192.19,15.4104]
[1722238214721,13.05,192.25,192.19,25.8165]
[1722238215295,13.05,192.25,192.23,4.1616]
[1722238215595,5.46077322,192.29,192.23,4.1616]
[1722238215801,13.05,192.25,192.23,4.1616]
[1722238215993,5.46077322,192.29,192.23,4.1616]
[1722238218012,13.05,192.26,192.24,4.1614]
[1722238218999,13.05,192.26,192.23,4.1614]
[1722238220395,13.05,192.26,192.24,4.1614]
[1722238221205,13.05,192.26,192.22,10.4046]
[1722238221511,13.05,192.26,192.24,4.1614]
[1722238221718,13.05,192.27,192.24,4.1614]
[1722238222191,0.32,192.31,192.25,10.403]
[1722238222726,13.05,192.3,192.25,10.403]
[1722238223085,13.37,192.31,192.29,4.1603]
[1722238223314,0.32,192.31,192.3,4.1601]
[1722238223493,0.32,192.31,192.29,4.1603]
[1722238224394,13.37,192.31,192.28,14.5619]
[1722238224594,13.05,192.3,192.28,14.5619]
[1722238225293,13.37,192.31,192.29,4.1603]
[1722238225492,0.32,192.31,192.3,4.1601]
[1722238225888,0.32,192.31,192.28,10.4014]
[1722238226206,0.32,192.31,192.3,4.1601]
[1722238226513,0.32,192.31,192.28,10.4014]
[1722238226697,13.37,192.31,192.26,4.1608]
[1722238226901,13.05,192.3,192.27,4.1606]
[1722238227390,13.05,192.3,192.27,10.4018]
[1722238227723,13.37,192.31,192.29,4.1603]
[1722238229202,0.32,192.31,192.3,4.1601]
[1722238229520,0.32,192.31,192.3,17.5501]
[1722238231807,4.4426092,192.35,192.34,35.354]
[1722238233304,1.29948929,192.47,192.41,4.1577]
[1722238233626,13.05,192.44,192.4,10.3948]
[1722238233793,13.05,192.44,192.41,4.1577]
[1722238234215,5.45558443,192.49,192.42,4.1575]
[1722238234432,13.05,192.44,192.42,4.1575]
[1722238234595,5.45558443,192.49,192.42,4.1575]
[1722238234596,13.05,192.43,192.42,4.1575]
[1722238235430,13.05,192.43,192.41,4.1577]
[1722238235721,13.05,192.43,192.4,14.5527]
[1722238236030,13.05,192.42,192.41,4.1576]
[1722238236827,1.29934003,192.48,192.43,10.3932]
[1722238237034,13.05,192.44,192.36,13.05]
[1722238237196,13.05,192.42,192.39,10.3952]
[1722238237513,13.05,192.4,192.35,10.3972]
[1722238237713,13.05,192.36,192.35,10.3972]
[1722238237950,13.05,192.36,192.28,15.504]
[1722238238159,13.05,192.33,192.29,5.221]
[1722238238450,13.05,192.33,192.32,9.3807]
[1722238238745,13.05,192.33,192.32,5.221]
[1722238238959,17.2095,192.33,192.32,5.221]
[1722238239339,58.05,192.33,192.28,5.221]
[1722238239523,13.05,192.29,192.28,5.221]
[1722238239717,13.05,192.29,192.27,4.1607]
[1722238239923,13.05,192.29,192.28,4.1605]
[1722238240335,13.05,192.31,192.28,10.401]
[1722238240539,13.05,192.32,192.28,10.401]
[1722238240743,13.05,192.33,192.31,10.3997]
[1722238240941,13.05,192.35,192.31,10.3997]
[1722238241144,5.94949214,192.42,192.31,10.3997]
[1722238241145,13.05,192.36,192.31,10.3997]
[1722238241357,13.05,192.36,192.35,4.159]
[1722238242146,13.05,192.37,192.36,4.1588]
[1722238242347,13.05,192.38,192.37,4.1586]
[1722238243031,1.29968041,192.48,192.45,4.1568]
[1722238243360,1.29968041,192.48,192.45,4.1569]
[1722238243862,1.29968041,192.48,192.45,10.3919]
[1722238244372,27.28912528,192.52,192.46,4.1564]
[1722238244671,4.1559,192.5,192.43,4.1571]
[1722238244970,27.28912528,192.52,192.44,4.157]
[1722238244971,5.45477296,192.51,192.44,4.157]
[1722238245149,25.99,192.52,192.47,4.1564]
[1722238245333,1.29899445,192.51,192.44,10.3926]
[1722238245546,1.29899445,192.51,192.4,10.3949]
[1722238245762,1.29899445,192.51,192.42,4.1575]
[1722238245763,25.99,192.49,192.42,4.1575]
[1722238246269,16.61267574,192.54,192.4,10.3949]
[1722238246270,1.29935505,192.51,192.4,10.3949]
[1722238246459,1.29935505,192.48,192.43,4.1573]
[1722238246673,4.1561,192.49,192.43,4.1573]
[1722238246967,45.0,192.48,192.43,4.1573]
[1722238247141,1.29922429,192.48,192.44,4.157]
[1722238247778,45.0,192.49,192.46,10.3915]
[1722238248286,31.44426961,192.53,192.46,14.5481]
[1722238248444,45.34,192.52,192.46,14.5481]
[1722238249255,45.34,192.52,192.47,4.1564]
[1722238249256,45.17,192.52,192.47,4.1564]
[1722238249466,45.0,192.52,192.46,10.3915]
[1722238249665,31.44419471,192.53,192.47,4.1564]
[1722238249970,30.1452,192.53,192.47,4.1564]
[1722238250180,25.99,192.53,192.46,10.3915]
[1722238250359,1.29897321,192.52,192.46,10.3915]
[1722238250558,27.28904522,192.53,192.46,10.3915]
[1722238250866,45.34,192.52,192.46,4.1566]
[1722238251265,1.29907535,192.51,192.44,10.3926]
[1722238251566,25.99,192.5,192.4,10.3947]
[1722238251758,46.29931834,192.49,192.4,10.3947]
[1722238252181,46.29931834,192.49,192.43,10.3932]
[1722238252846,46.29931834,192.49,192.37,15.0313]
[1722238252847,0.34,192.48,192.41,4.1576]
[1722238253054,1.29937964,192.47,192.41,4.1576]
[1722238253364,1.29937964,192.47,192.39,10.395]
[1722238254077,42.96937964,192.47,192.35,10.3972]
[1722238254250,0.34,192.46,192.35,10.3972]
[1722238254447,25.99,192.44,192.36,4.1586]
[1722238254766,1.29968025,192.43,192.35,10.3972]
[1722238255080,1.29968025,192.43,192.35,4.159]
[1722238255081,5.45727444,192.42,192.35,4.159]
[1722238255286,45.0,192.41,192.3,15.5551]
[1722238255489,1.2997086,192.4,192.3,15.5551]
[1722238255659,1.29971011,192.39,192.3,15.5551]
[1722238256273,1.29971011,192.39,192.35,4.159]
[1722238256875,1.29971011,192.39,192.36,4.1588]
[1722238258163,1.29971011,192.39,192.34,14.5572]
[1722238258360,1.29971011,192.39,192.34,10.3981]
[1722238259081,1.29971011,192.39,192.35,4.1588]
[1722238259397,4.158,192.4,192.34,10.3981]
[1722238259554,1.29977327,192.39,192.34,10.3981]
[1722238259754,1.29977327,192.39,192.36,4.1587]
[1722238260150,45.0,192.41,192.36,4.1587]
[1722238260570,1.29972873,192.4,192.36,4.1587]
[1722238260773,49.1578,192.41,192.35,4.1589]
[1722238260996,1.29975403,192.4,192.35,4.1589]
[1722238261159,45.0,192.41,192.35,4.1589]
[1722238261654,1.29975459,192.4,192.35,4.1589]
[1722238262695,1.29975902,192.39,192.35,4.1589]
[1722238263491,1.29975902,192.39,192.3,15.5551]
[1722238263492,1.29975902,192.39,192.3,25.9551]
[1722238263790,1.29994306,192.38,192.32,4.1595]
[1722238263964,46.29994306,192.38,192.32,4.1595]
[1722238264160,46.29994306,192.38,192.3,25.9551]
[1722238264366,46.29994306,192.38,192.31,4.1598]
[1722238264873,4.1588,192.36,192.3,30.1152]
[1722238265058,1.30004865,192.35,192.3,30.1152]
[1722238265259,1.30004865,192.35,192.3,15.5551]
[1722238265483,1.30004865,192.35,192.3,19.7152]
[1722238266562,4.1594,192.34,192.29,5.221]
[1722238266893,50.45972589,192.33,192.29,5.221]
[1722238267064,46.30022589,192.33,192.29,5.221]
[1722238267976,1.30022589,192.33,192.29,5.221]
[1722238268983,45.0,192.34,192.29,5.221]
[1722238269310,45.0,192.34,192.29,9.3812]
[1722238269601,45.0,192.35,192.29,9.3812]
[1722238270010,1.64540534,192.42,192.31,10.3994]
[1722238270011,25.99,192.41,192.31,10.3994]
[1722238270177,1.64540534,192.42,192.33,4.1594]
[1722238270178,4.1582,192.39,192.33,4.1594]
[1722238270783,1.30017303,192.4,192.34,10.398]
[1722238270981,4.1579,192.41,192.35,4.159]
[1722238271184,4.1579,192.41,192.34,14.5572]
[1722238271419,1.29982773,192.42,192.34,10.398]
[1722238272007,4.159,192.36,192.3,10.4]
[1722238272173,4.1584,192.39,192.32,4.1596]
[1722238272513,41.67,192.4,192.32,4.1596]
[1722238272514,46.64001893,192.38,192.32,4.1596]
[1722238272714,0.34,192.38,192.3,10.4]
[1722238272874,4.1589,192.36,192.3,10.4]
[1722238273081,4.1593,192.34,192.29,5.221]
[1722238273423,46.30020543,192.33,192.29,9.3813]
[1722238273604,45.0,192.34,192.29,9.3813]
[1722238273919,46.30016238,192.34,192.29,9.3813]
[1722238274125,45.0,192.34,192.29,9.3813]
[1722238274290,45.0,192.34,192.27,5.221]
[1722238274291,50.45947854,192.34,192.27,5.221]
[1722238274487,46.30017854,192.34,192.29,9.3813]
[1722238274801,50.45947854,192.34,192.29,5.221]
[1722238275412,4.1595,192.33,192.29,5.221]
[1722238275616,46.30030052,192.32,192.27,5.221]
[1722238275799,46.30030052,192.32,192.29,5.221]
[1722238276309,46.30030052,192.32,192.26,10.4022]
[1722238276509,25.99,192.4,192.24,15.82182815]
[1722238276701,1.30001776,192.39,192.34,4.1592]
[1722238276899,27.28998553,192.4,192.31,10.3996]
[1722238277114,31.43034807,192.43,192.34,10.398]
[1722238277316,4.158,192.4,192.34,14.5572]
[1722238277627,5.45738588,192.42,192.35,4.159]
[1722238278319,4.1578,192.41,192.35,4.159]
[1722238278701,1.29988588,192.42,192.34,10.398]
[1722238278702,4.158,192.4,192.34,14.5572]
[1722238278905,45.0,192.39,192.34,14.5572]
[1722238279817,46.29982494,192.39,192.34,14.5572]
[1722238280525,45.0,192.39,192.34,14.5572]
[1722238281717,45.0,192.39,192.35,4.159]
[1722238281920,45.0,192.4,192.36,4.1588]
[1722238282223,45.0,192.41,192.36,4.1588]
[1722238282930,49.1578,192.41,192.35,4.159]
[1722238285297,45.0,192.41,192.39,4.1581]
[1722238285609,45.0,192.41,192.37,14.5548]
[1722238285801,1.29962099,192.48,192.37,10.3963]
[1722238286007,1.29948285,192.48,192.37,10.3963]
[1722238286212,4.1567,192.46,192.4,4.1579]
[1722238286604,4.1567,192.46,192.39,4.1581]
[1722238286808,1.29944637,192.45,192.37,10.3963]
[1722238287002,4.1575,192.43,192.37,14.5549]
[1722238287300,1.29956638,192.42,192.37,14.5549]
[1722238287610,1.29956638,192.42,192.37,10.3963]
[1722238287812,1.29956638,192.42,192.37,14.5548]
[1722238288030,27.65124015,192.49,192.37,10.3963]
[1722238288031,5.45596017,192.47,192.37,10.3963]
[1722238288346,4.1568,192.46,192.4,4.1579]
[1722238289441,45.0,192.45,192.4,4.1579]
[1722238292647,49.157,192.45,192.38,4.1582]
[1722238292834,45.0,192.45,192.37,10.3963]
[1722238293035,4.1572,192.44,192.39,4.1582]
[1722238293926,4.1564,192.48,192.4,10.3948]
[1722238294129,49.1564,192.47,192.42,4.1575]
[1722238294331,4.156,192.5,192.43,4.1572]
[1722238294731,25.99,192.53,192.43,4.1572]
[1722238294732,4.156,192.49,192.43,4.1572]
[1722238296359,1.29916888,192.53,192.46,4.1566]
[1722238296653,4.1558,192.5,192.45,4.1567]
[1722238296857,4.1558,192.5,192.43,10.3931]
[1722238297024,5.45510413,192.49,192.43,10.3931]
[1722238297225,4.1561,192.49,192.43,10.3931]
[1722238297446,4.1561,192.49,192.43,14.5503]
[1722238300048,4.1563,192.48,192.43,10.3931]
[1722238301164,1.29915915,192.53,192.43,10.3931]
[1722238301457,4.1557,192.51,192.45,4.1568]
[1722238301662,4.156,192.5,192.43,10.3931]
[1722238301855,4.1561,192.49,192.43,14.5502]
[1722238302180,5.45514129,192.49,192.43,4.1573]
[1722238302967,4.1554,192.52,192.46,4.1566]
[1722238303135,62.1456,192.51,192.44,12.99]
[1722238303336,63.4449412,192.5,192.43,17.1471]
[1722238303659,12.99,192.5,192.45,4.1568]
[1722238303857,12.99,192.51,192.45,4.1568]
[1722238304164,17.1456,192.51,192.45,4.1568]
[1722238304456,4.1558,192.5,192.45,4.1568]
[1722238304658,12.99,192.5,192.45,4.1569]
[1722238307542,12.99,192.51,192.46,4.1566]
[1722238308962,45.0,192.53,192.46,12.99]
[1722238309175,57.99,192.53,192.48,4.156]
[1722238309335,271.10819618,192.54,192.49,16.1166]
[1722238309536,0.7841092,192.54,192.53,4.1551]
[1722238310246,0.7841092,192.54,192.52,4.1553]
[1722238310565,13.7741092,192.54,192.49,16.1166]
[1722238310772,4.1552,192.53,192.49,16.1166]
[1722238311851,13.7741092,192.54,192.49,16.1166]
[1722238312245,13.7741092,192.54,192.49,20.2726]
[1722238312458,0.7841092,192.54,192.5,4.1558]
[1722238313589,0.7841092,192.54,192.49,16.1166]
[1722238314285,0.7841092,192.54,192.49,20.2726]
[1722238314665,0.7841092,192.54,192.51,4.1554]
[1722238315965,0.7841092,192.54,192.5,10.3893]
[1722238316810,0.7841092,192.54,192.49,16.1166]
[1722238316811,4.1554,192.52,192.49,16.1166]
[1722238316985,4.1552,192.53,192.49,16.1166]
[1722238318601,49.9391092,192.54,192.49,16.1166]
[1722238319178,0.7841092,192.54,192.5,10.3895]
[1722238319407,0.7841092,192.54,192.51,4.1554]
[1722238319607,0.7841092,192.54,192.5,10.3895]
[1722238320207,0.7841092,192.54,192.51,4.1556]
[1722238320987,0.7841092,192.54,192.5,10.3895]
[1722238321314,0.7841092,192.54,192.51,4.1554]
[1722238321986,0.7841092,192.54,192.52,4.1554]
[1722238324281,0.7841092,192.54,192.53,4.1551]
[1722238324517,0.7841092,192.54,192.53,14.543]
[1722238327187,0.7841092,192.54,192.45,4.1568]
[1722238327188,26.7541092,192.54,192.45,4.1568]
[1722238327503,0.7841092,192.54,192.47,10.3907]
[1722238327703,0.7841092,192.54,192.49,4.1559]
[1722238328106,0.7841092,192.54,192.51,4.1555]
[1722238328426,0.7841092,192.54,192.52,4.1553]
[1722238328796,0.7841092,192.54,192.49,21.2454]
[1722238330507,4.1552,192.53,192.49,21.2454]
[1722238330819,0.7841092,192.54,192.49,21.2454]
[1722238331012,0.7841092,192.54,192.49,25.4014]
[1722238331326,49.9391092,192.54,192.49,21.2454]
[1722238331491,0.7841092,192.54,192.49,21.2454]
[1722238332110,0.7841092,192.54,192.51,10.3886]
[1722238332693,0.7841092,192.54,192.49,25.4014]
[1722238333296,12.99,192.53,192.49,25.4014]
[1722238335734,12.99,192.51,192.46,5.221]
[1722238335906,12.99,192.49,192.46,5.221]
[1722238336110,12.99,192.48,192.46,5.221]
[1722238336510,4.1556,192.51,192.46,5.221]
[1722238336511,0.7841092,192.54,192.46,5.221]
[1722238336706,12.99,192.51,192.48,4.1561]
[1722238337003,13.7741092,192.54,192.48,10.3904]
[1722238338045,12.99,192.5,192.48,10.3904]
[1722238338234,12.99,192.49,192.45,9.3777]
[1722238338442,0.7841092,192.54,192.47,10.3911]
[1722238338736,12.99,192.53,192.47,10.3911]
[1722238339031,0.7841092,192.54,192.51,4.1554]
[1722238339420,0.7841092,192.54,192.53,14.543]
[1722238341020,0.7841092,192.54,192.51,4.1554]
[1722238341230,0.7841092,192.54,192.49,15.6106]
[1722238341742,0.7841092,192.54,192.51,4.1556]
[1722238342748,0.7841092,192.54,192.52,4.1553]
[1722238343848,0.7841092,192.54,192.5,4.1556]
[1722238344138,0.7841092,192.54,192.51,4.1555]
[1722238344339,0.7841092,192.54,192.5,4.1557]
[1722238345334,0.7841092,192.54,192.51,4.1556]
[1722238345712,0.7841092,192.54,192.5,9.3768]
[1722238347549,0.7841092,192.54,192.51,4.1556]
[1722238348122,0.7841092,192.54,192.5,5.221]
[1722238348832,0.7841092,192.54,192.5,9.3768]
[1722238349625,0.7841092,192.54,192.5,5.221]
[1722238350460,0.7841092,192.54,192.5,9.3768]
[1722238350625,0.7841092,192.54,192.5,5.221]
[1722238350821,6.23778714,192.54,192.5,5.221]
[1722238351027,4.9391092,192.54,192.5,5.221]
[1722238352151,4.1556,192.51,192.45,4.1568]
[1722238352461,4.9391092,192.54,192.49,4.156]
[1722238352635,0.7841092,192.54,192.5,4.1557]
[1722238352950,0.7841092,192.54,192.49,4.156]
[1722238353160,0.7841092,192.54,192.44,22.1119]
[1722238353161,2.0827922,192.54,192.44,22.1119]
[1722238353453,0.7841092,192.54,192.44,22.1119]
[1722238353833,4.1553,192.53,192.47,4.1563]
[1722238354334,1.29876302,192.52,192.46,10.3916]
[1722238354537,5.45426302,192.52,192.46,10.3916]
[1722238354738,5.45426302,192.52,192.45,4.1568]
[1722238354739,1.29876302,192.52,192.45,4.1568]
[1722238354932,1.29876302,192.52,192.44,22.1119]
[1722238355133,45.0,192.53,192.44,22.1119]
[1722238355334,4.1556,192.52,192.46,4.1566]
[1722238356741,4.1556,192.52,192.45,10.3922]
[1722238356742,49.1552,192.53,192.47,4.1564]
[1722238357238,4.1554,192.52,192.46,4.1567]
[1722238360239,49.1551,192.53,192.47,4.1564]
[1722238360753,4.1554,192.52,192.46,4.1567]
[1722238361132,12.99,192.51,192.46,4.1567]
[1722238362254,12.99,192.51,192.47,4.1564]
[1722238362558,12.99,192.53,192.48,4.1562]
[1722238364642,12.99,192.53,192.48,10.3904]
[1722238365024,12.99,192.53,192.5,4.1557]
[1722238365645,12.99,192.53,192.49,4.156]
[1722238365959,12.99,192.53,192.48,10.3904]
[1722238366331,12.99,192.53,192.48,14.5465]
[1722238366738,12.99,192.53,192.49,4.156]
[1722238367267,12.99,192.51,192.48,10.3904]
[1722238367659,12.99,192.52,192.48,14.5465]
[1722238367863,12.99,192.53,192.49,4.156]
[1722238368356,0.7841092,192.54,192.51,4.1556]
[1722238369361,0.7841092,192.54,192.48,23.3804]
[1722238369564,12.99,192.53,192.49,4.1558]
[1722238369866,12.99,192.52,192.48,14.5466]
[1722238370253,12.99,192.52,192.48,10.3904]
[1722238370982,4.1552,192.53,192.48,10.3904]
[1722238370983,12.99,192.51,192.48,10.3904]
[1722238371344,12.99,192.51,192.48,14.5466]
[1722238371968,0.7841092,192.54,192.49,0.2643969]
[1722238373267,0.7841092,192.54,192.51,4.1556]
[1722238373645,13.7741092,192.54,192.51,4.1556]
[1722238374961,0.7841092,192.54,192.52,4.1553]
[1722238375273,13.7741092,192.54,192.52,4.1553]
[1722238379174,0.7841092,192.54,192.52,4.1553]
[1722238380648,0.7841092,192.54,192.51,10.389]
[1722238380980,0.7841092,192.54,192.53,4.1551]
[1722238382479,0.7841092,192.54,192.53,17.1451]
[1722238383263,4.1527,192.65,192.56,10.3862]
[1722238383465,12.99,192.65,192.58,12.99]
[1722238383781,2.6720092,192.73,192.59,12.99]
[1722238384105,12.99,192.67,192.64,4.1526]
[1722238384462,12.99,192.67,192.63,4.153]
[1722238384866,2.51923922,192.73,192.65,4.1525]
[1722238384867,4.1513,192.71,192.65,4.1525]
[1722238385081,12.99,192.68,192.65,4.1525]
[1722238386089,12.99,192.68,192.64,14.5347]
[1722238386474,0.7841092,192.73,192.64,23.3719]
[1722238386675,0.7841092,192.73,192.68,4.1519]
[1722238386981,13.7741092,192.73,192.7,4.1514]
[1722238387156,0.7841092,192.73,192.72,4.1511]
[1722238387960,0.7841092,192.73,192.7,14.5299]
[1722238388573,0.7841092,192.73,192.72,4.1511]
[1722238388886,0.7841092,192.73,192.72,32.2218]
[1722238389859,0.7841092,192.73,192.72,19.2318]
[1722238390284,0.7841092,192.73,192.72,32.2218]
[1722238390762,0.7841092,192.73,192.72,19.2318]
[1722238391903,0.7841092,192.73,192.72,25.6619]
[1722238392399,0.7841092,192.73,192.72,26.0019]
[1722238392979,0.7841092,192.73,192.72,25.6619]
[1722238393192,0.7841092,192.73,192.72,30.8829]
[1722238393993,0.7841092,192.73,192.72,26.7318]
[1722238394172,0.7841092,192.73,192.72,30.8829]
[1722238397172,0.7841092,192.73,192.72,25.6619]
[1722238397386,1.0385092,192.76,192.74,4.1506]
[1722238397696,1.0385092,192.76,192.75,4.1504]
[1722238398397,2.33548683,192.76,192.69,10.3789]
[1722238398693,1.29729324,192.75,192.69,10.3789]